bitfinex-derivatives/quotes_BTCF0:USTF0_20241218
["timestamp","ask_amount","ask_price","bid_price","bid_amount"]
[1734488100856,0.047467,105330.0,105320.0,1.65266698]
[1734488101061,0.047467,105330.0,105320.0,1.65174698]
[1734488102459,0.047467,105330.0,105320.0,0.94539249]
[1734488103851,0.047467,105330.0,105320.0,1.44621898]
[1734488104058,0.047467,105330.0,105320.0,0.99286449]
[1734488104447,0.047467,105330.0,105320.0,1.00716457]
[1734488105859,0.047462,105350.0,105330.0,0.047466]
[1734488106057,0.047462,105350.0,105340.0,0.42369249]
[1734488106250,0.047462,105350.0,105340.0,0.3608]
[1734488106863,0.047463,105340.0,105330.0,0.3608]
[1734488107365,0.047462,105350.0,105320.0,1.46143706]
[1734488107366,0.047467,105330.0,105320.0,1.46143706]
[1734488107660,0.047467,105330.0,105320.0,1.46051706]
[1734488109359,0.047467,105330.0,105320.0,1.51618876]
[1734488109560,0.047467,105330.0,105320.0,1.57274722]
[1734488110652,0.047467,105330.0,105320.0,1.51823189]
[1734488112954,0.047463,105340.0,105330.0,0.047466]
[1734488113261,0.047463,105340.0,105330.0,0.92542324]
[1734488115553,0.047463,105340.0,105330.0,0.98222781]
[1734488116765,0.047463,105340.0,105330.0,0.87186932]
[1734488116969,0.047463,105340.0,105330.0,0.8149437]
[1734488117364,0.047463,105340.0,105330.0,0.3608]
[1734488117968,0.047463,105340.0,105330.0,0.42369249]
[1734488119274,0.047463,105340.0,105330.0,0.3608]
[1734488119665,0.047463,105340.0,105320.0,1.46218727]
[1734488119867,0.047463,105340.0,105330.0,0.42369249]
[1734488121167,0.047463,105340.0,105330.0,0.47115949]
[1734488122064,0.047463,105340.0,105330.0,0.408267]
[1734488123471,0.047467,105330.0,105320.0,1.39929378]
[1734488123675,0.047467,105330.0,105320.0,1.94310561]
[1734488124074,0.047467,105330.0,105320.0,1.93421791]
[1734488124572,0.047467,105330.0,105320.0,0.49372297]
[1734488124779,0.047467,105330.0,105320.0,0.3980462]
[1734488125076,0.047472,105320.0,105310.0,0.8543869]
[1734488125677,0.047472,105320.0,105310.0,0.39953191]
[1734488126062,0.047472,105320.0,105310.0,0.3981078]
[1734488127165,0.82168449,105320.0,105310.0,6.16e-05]
[1734488127365,1.12168449,105320.0,105290.0,0.3980462]
[1734488127673,0.047481,105300.0,105290.0,0.3980462]
[1734488128276,0.047481,105300.0,105290.0,0.3981277]
[1734488128475,0.047481,105300.0,105290.0,0.7589277]
[1734488128671,0.047481,105300.0,105290.0,0.3981277]
[1734488129573,0.047481,105300.0,105290.0,0.7589277]
[1734488130276,0.047481,105300.0,105290.0,0.3981277]
[1734488130966,0.047481,105300.0,105290.0,8.15e-05]
[1734488132381,0.47117349,105300.0,105290.0,0.96600581]
[1734488132579,0.47117349,105300.0,105290.0,0.45493649]
[1734488132881,0.47117349,105300.0,105290.0,0.85171946]
[1734488133384,0.53413454,105300.0,105290.0,0.39686447]
[1734488133684,0.77124205,105300.0,105290.0,0.33998237]
[1734488134383,0.48500867,105300.0,105290.0,0.33998237]
[1734488134684,0.78500867,105300.0,105290.0,0.33998237]
[1734488135475,0.84790116,105300.0,105270.0,0.39728297]
[1734488135684,0.47118249,105280.0,105270.0,0.0005]
[1734488135980,0.40829,105280.0,105270.0,0.0005]
[1734488136484,0.047494,105270.0,105260.0,0.3608]
[1734488137187,0.047494,105270.0,105250.0,1.39366316]
[1734488137482,0.047494,105270.0,105260.0,0.3608]
[1734488137674,0.047494,105270.0,105250.0,0.93792817]
[1734488137876,0.047494,105270.0,105260.0,0.3608]
[1734488139484,0.22499,105280.0,105260.0,0.47169049]
[1734488139792,0.04749,105280.0,105270.0,0.3608]
[1734488139979,0.06144011,105280.0,105260.0,0.47169049]
[1734488140179,0.06144011,105280.0,105260.0,0.408798]
[1734488140490,0.06144011,105280.0,105260.0,0.408298]
[1734488141183,0.01395011,105280.0,105260.0,0.3608]
[1734488141388,0.047494,105270.0,105260.0,0.3613]
[1734488142578,0.047494,105270.0,105260.0,0.3608]
[1734488144288,0.047499,105260.0,105250.0,0.17762517]
[1734488144480,0.47119149,105260.0,105250.0,0.17712517]
[1734488144675,0.408299,105260.0,105250.0,0.17712517]
[1734488145390,0.408299,105260.0,105250.0,0.17762517]
[1734488145884,0.047499,105260.0,105250.0,0.53842517]
[1734488146103,0.047499,105260.0,105250.0,0.60131766]
[1734488146393,0.3608,105280.0,105250.0,0.60081766]
[1734488146585,0.06682737,105280.0,105260.0,0.47119049]
[1734488146891,0.06682737,105280.0,105260.0,0.764598]
[1734488149286,0.06682737,105280.0,105260.0,0.403798]
[1734488149482,0.42762737,105280.0,105260.0,0.403798]
[1734488149688,0.06682737,105280.0,105260.0,0.764598]
[1734488151088,0.06682737,105280.0,105260.0,0.403798]
[1734488151289,0.42762737,105280.0,105260.0,0.403798]
[1734488151788,0.047494,105270.0,105260.0,0.403798]
[1734488152587,0.047494,105270.0,105260.0,0.764598]
[1734488154189,0.047494,105270.0,105260.0,0.7171]
[1734488156990,0.06110378,105270.0,105260.0,0.7171]
[1734488159681,0.06110378,105270.0,105260.0,0.764599]
[1734488161099,0.06110378,105270.0,105260.0,0.78700074]
[1734488161599,0.06110378,105270.0,105260.0,0.764599]
[1734488161989,0.06110378,105270.0,105260.0,0.7171]
[1734488162592,0.06110378,105270.0,105260.0,0.764599]
[1734488162785,0.01360978,105270.0,105260.0,0.82749149]
[1734488162989,0.42762637,105280.0,105260.0,0.764599]
[1734488163194,0.41019128,105290.0,105270.0,0.47118649]
[1734488163496,0.00142528,105290.0,105280.0,0.47118249]
[1734488163692,0.42741701,105300.0,105280.0,0.57999]
[1734488163997,0.44041651,105300.0,105280.0,0.57999]
[1734488164788,0.07961651,105300.0,105280.0,0.57999]
[1734488165690,0.07961651,105300.0,105280.0,0.58999]
[1734488165892,6.856e-05,105300.0,105290.0,0.48117749]
[1734488166093,0.0005,105310.0,105300.0,0.047481]
[1734488166397,0.00142474,105330.0,105320.0,0.047472]
[1734488166590,0.047463,105340.0,105330.0,0.047467]
[1734488166792,0.01923636,105350.0,105330.0,0.64655949]
[1734488166992,0.06669536,105350.0,105340.0,8.045e-05]
[1734488167199,0.06669536,105350.0,105340.0,0.18288045]
[1734488168004,0.49038785,105350.0,105340.0,8.045e-05]
[1734488168198,0.84868785,105350.0,105340.0,8.045e-05]
[1734488168900,1.14868785,105350.0,105310.0,0.1731]
[1734488169199,0.047476,105310.0,105300.0,0.1828]
[1734488169502,0.3608,105320.0,105300.0,0.82707349]
[1734488169503,0.047973,105320.0,105300.0,0.82707349]
[1734488169803,0.047973,105320.0,105300.0,0.764181]
[1734488170003,0.0005,105320.0,105310.0,0.047476]
[1734488170195,0.01267552,105360.0,105340.0,0.047463]
[1734488170499,0.04753624,105360.0,105340.0,0.408263]
[1734488170700,0.047458,105350.0,105340.0,0.5362]
[1734488170900,0.408258,105350.0,105330.0,0.581767]
[1734488171291,0.408258,105350.0,105330.0,0.64465949]
[1734488171494,0.047458,105350.0,105330.0,0.64465949]
[1734488171698,0.408258,105350.0,105330.0,0.64465949]
[1734488172394,0.047458,105350.0,105340.0,0.3608]
[1734488172794,0.047458,105350.0,105330.0,0.64465949]
[1734488176598,0.0005,105340.0,105330.0,0.64465949]
[1734488176798,0.0005,105340.0,105330.0,0.581767]
[1734488177508,0.047458,105350.0,105330.0,0.581767]
[1734488178009,0.0661669,105360.0,105340.0,0.47115449]
[1734488178209,0.0661669,105360.0,105340.0,0.408262]
[1734488178397,0.0661669,105360.0,105340.0,0.047462]
[1734488179510,0.0005,105350.0,105340.0,0.408262]
[1734488179709,0.0005,105350.0,105340.0,0.47115449]
[1734488181006,0.0005,105350.0,105340.0,0.64155449]
[1734488183197,0.047958,105350.0,105340.0,0.578662]
[1734488183404,0.047463,105340.0,105330.0,0.581766]
[1734488186415,0.047463,105340.0,105330.0,0.5343]
[1734488186614,0.047467,105330.0,105320.0,0.5362]
[1734488186917,0.047467,105330.0,105320.0,0.1754]
[1734488187110,0.047467,105330.0,105310.0,0.1754]
[1734488187111,0.047472,105320.0,105310.0,0.1754]
[1734488187316,0.047472,105320.0,105300.0,0.41208]
[1734488187504,0.047472,105320.0,105300.0,0.77288]
[1734488187712,0.408272,105320.0,105300.0,0.77288]
[1734488188008,0.047476,105310.0,105300.0,0.41208]
[1734488188206,0.047476,105310.0,105300.0,0.3646]
[1734488188411,0.047476,105310.0,105300.0,0.1819]
[1734488189523,0.047476,105310.0,105300.0,0.5427]
[1734488189815,0.408272,105320.0,105310.0,0.047476]
[1734488190021,0.047468,105330.0,105310.0,0.47116849]
[1734488191719,0.047468,105330.0,105320.0,0.408272]
[1734488192015,0.05960099,105340.0,105320.0,0.64976449]
[1734488192207,0.05960099,105340.0,105330.0,0.23159249]
[1734488192403,0.047463,105340.0,105330.0,0.23159249]
[1734488192604,0.047463,105340.0,105330.0,0.1687]
[1734488193215,0.38009932,105350.0,105330.0,0.23159249]
[1734488193408,0.06675732,105350.0,105340.0,0.06289249]
[1734488193617,0.06675732,105350.0,105330.0,0.63985649]
[1734488193912,0.06675732,105350.0,105340.0,0.3608]
[1734488194919,0.047463,105340.0,105330.0,0.5295]
[1734488196814,0.047463,105340.0,105330.0,0.1687]
[1734488197014,0.047463,105340.0,105320.0,0.586871]
[1734488198211,0.01183346,105340.0,105320.0,0.586871]
[1734488198518,0.047467,105330.0,105320.0,0.3608]
[1734488200725,0.047463,105340.0,105320.0,0.47116249]
[1734488201413,0.047463,105340.0,105320.0,0.40827]
[1734488202917,0.047467,105330.0,105320.0,0.3608]
[1734488203118,0.11035549,105340.0,105310.0,0.930775]
[1734488203119,0.047472,105320.0,105310.0,0.8833]
[1734488203919,0.047472,105320.0,105300.0,0.66128]
[1734488204222,0.42369249,105330.0,105300.0,0.40828]
[1734488204223,0.047476,105310.0,105300.0,0.40828]
[1734488204617,0.1756,105320.0,105300.0,0.47117249]
[1734488204817,0.223072,105320.0,105300.0,0.47117249]
[1734488205018,0.047472,105320.0,105300.0,0.47117249]
[1734488205222,0.047472,105320.0,105310.0,0.047476]
[1734488206322,0.3484,105340.0,105310.0,0.47116849]
[1734488206519,0.047464,105340.0,105320.0,0.47116449]
[1734488206716,0.047464,105340.0,105330.0,0.591067]
[1734488208826,0.60731167,105350.0,105330.0,0.591067]
[1734488209420,0.06675832,105350.0,105340.0,0.408263]
[1734488209722,0.38009932,105350.0,105330.0,0.591066]
[1734488210024,0.047463,105340.0,105330.0,0.591066]
[1734488210419,0.047463,105340.0,105330.0,0.5436]
[1734488210621,0.047463,105340.0,105330.0,0.1828]
[1734488210821,0.408263,105340.0,105320.0,0.76387]
[1734488211017,0.047463,105340.0,105330.0,0.3608]
[1734488212723,0.01929932,105350.0,105340.0,0.047463]
[1734488212922,0.01929932,105350.0,105340.0,0.590963]
[1734488213427,0.23634161,105360.0,105340.0,0.590963]
[1734488213618,8.224e-05,105360.0,105350.0,0.047458]
[1734488213823,0.04753824,105360.0,105340.0,0.590961]
[1734488214626,8.224e-05,105360.0,105350.0,0.3608]
[1734488214931,0.04753524,105360.0,105350.0,0.355]
[1734488215128,0.04753524,105360.0,105340.0,0.590962]
[1734488215329,0.04753524,105360.0,105340.0,0.942162]
[1734488217231,0.40833524,105360.0,105340.0,0.942162]
[1734488217726,0.04753524,105360.0,105340.0,0.942162]
[1734488220031,0.047458,105350.0,105340.0,0.942162]
[1734488220232,0.047458,105350.0,105340.0,0.8947]
[1734488220429,0.04753624,105360.0,105340.0,1.00505349]
[1734488220838,0.04753624,105360.0,105340.0,0.942161]
[1734488221144,0.04753624,105360.0,105350.0,0.3608]
[1734488221344,0.04753624,105360.0,105340.0,0.942161]
[1734488221529,0.04753624,105360.0,105350.0,0.047458]
[1734488221726,0.04753624,105360.0,105350.0,0.408258]
[1734488222142,8.224e-05,105360.0,105350.0,0.47115049]
[1734488222439,8.224e-05,105360.0,105350.0,0.408258]
[1734488225142,8.224e-05,105360.0,105350.0,0.47115049]
[1734488226946,8.224e-05,105360.0,105350.0,0.408258]
[1734488227743,8.224e-05,105360.0,105350.0,0.418258]
[1734488228143,8.224e-05,105360.0,105350.0,0.057458]
[1734488228347,0.40833624,105360.0,105350.0,0.01]
[1734488228932,0.95282873,105360.0,105330.0,0.3608]
[1734488229141,0.047463,105340.0,105330.0,0.3608]
[1734488229348,0.047463,105340.0,105330.0,0.3708]
[1734488229547,0.047463,105340.0,105330.0,0.418267]
[1734488230337,0.047463,105340.0,105330.0,0.057467]
[1734488231048,0.391859,105350.0,105330.0,0.48115949]
[1734488232242,0.047459,105350.0,105330.0,0.48115949]
[1734488232546,0.047463,105340.0,105330.0,0.418267]
[1734488234152,0.047459,105350.0,105330.0,0.418267]
[1734488234342,0.047459,105350.0,105330.0,0.48115949]
[1734488235246,0.047463,105340.0,105330.0,0.418267]
[1734488236647,0.88998224,105360.0,105330.0,0.418267]
[1734488236648,0.047459,105350.0,105330.0,0.418267]
[1734488236855,0.39503724,105360.0,105340.0,0.47115349]
[1734488237153,0.39503724,105360.0,105350.0,0.01]
[1734488237352,0.22763724,105360.0,105350.0,0.01]
[1734488237739,0.04753724,105360.0,105350.0,0.01]
[1734488237939,8.224e-05,105360.0,105350.0,0.48115049]
[1734488238146,0.04753624,105360.0,105350.0,0.01]
[1734488238855,0.47122873,105360.0,105350.0,0.01]
[1734488239154,0.94602873,105360.0,105350.0,0.01]
[1734488239354,0.96146722,105360.0,105310.0,0.45643824]
[1734488239650,0.06289249,105330.0,105310.0,0.5376]
[1734488239852,0.047472,105320.0,105310.0,0.5376]
[1734488240353,0.047472,105320.0,105310.0,0.585076]
[1734488241857,0.047463,105340.0,105320.0,0.047472]
[1734488242154,0.047463,105340.0,105320.0,0.586872]
[1734488242155,0.047467,105330.0,105320.0,0.586872]
[1734488242553,0.408263,105340.0,105320.0,0.586872]
[1734488243255,0.047463,105340.0,105330.0,0.47115949]
[1734488243456,0.047459,105350.0,105330.0,0.580067]
[1734488243647,0.047459,105350.0,105340.0,0.5396]
[1734488244456,0.047459,105350.0,105340.0,0.587063]
[1734488245052,0.047459,105350.0,105340.0,0.68270124]
[1734488245354,0.04753724,105360.0,105340.0,0.74559373]
[1734488245555,0.04753724,105360.0,105350.0,0.65295049]
[1734488245747,8.224e-05,105360.0,105350.0,0.65295049]
[1734488245951,0.04753624,105360.0,105350.0,0.1818]
[1734488246145,0.04753624,105360.0,105340.0,0.5396]
[1734488246146,0.047458,105350.0,105340.0,0.5396]
[1734488246452,0.42377473,105360.0,105340.0,0.5396]
[1734488246453,0.36088224,105360.0,105340.0,0.5396]
[1734488246656,0.36088224,105360.0,105340.0,0.587062]
[1734488247062,0.047458,105350.0,105340.0,0.1788]
[1734488248460,0.047462,105350.0,105330.0,1.07063174]
[1734488248659,0.047462,105350.0,105330.0,1.06173824]
[1734488248860,0.047462,105350.0,105330.0,0.9661]
[1734488249862,0.047462,105350.0,105330.0,0.7131]
[1734488250653,0.047463,105340.0,105330.0,0.7131]
[1734488252254,0.047463,105340.0,105330.0,0.3523]
[1734488253166,0.11035549,105340.0,105320.0,0.5387]
[1734488253363,0.047467,105330.0,105320.0,0.63433824]
[1734488253768,0.047467,105330.0,105320.0,0.5387]
[1734488254061,0.047467,105330.0,105320.0,0.09563824]
[1734488254257,0.11035949,105330.0,105320.0,0.09563824]
[1734488254459,0.47115949,105330.0,105310.0,0.7301]
[1734488254659,0.047472,105320.0,105310.0,0.75302092]
[1734488254857,0.047472,105320.0,105310.0,0.7301]
[1734488256760,0.408269,105330.0,105310.0,0.777576]
[1734488257465,0.408269,105330.0,105310.0,0.87321424]
[1734488259068,0.58684301,105340.0,105320.0,0.408271]
[1734488259265,0.408263,105340.0,105320.0,0.576871]
[1734488259466,0.47115549,105340.0,105320.0,0.576871]
[1734488260173,0.06610343,105340.0,105330.0,0.3608]
[1734488260862,0.42690343,105340.0,105320.0,0.576871]
[1734488261665,0.06610343,105340.0,105320.0,0.576871]
[1734488263066,0.42690343,105340.0,105320.0,0.576871]
[1734488263562,0.11035549,105340.0,105320.0,0.576871]
[1734488263962,0.47115549,105340.0,105320.0,0.576871]
[1734488265171,0.49026283,105340.0,105320.0,0.576871]
[1734488265375,0.42737034,105340.0,105320.0,0.576871]
[1734488265570,0.01910734,105340.0,105330.0,0.408267]
[1734488267169,0.06657034,105340.0,105330.0,0.408267]
[1734488270566,0.047467,105330.0,105320.0,0.5294]
[1734488270767,0.11035949,105330.0,105320.0,0.3608]
[1734488270979,0.047467,105330.0,105320.0,0.3608]
[1734488271181,0.11035949,105330.0,105320.0,0.3608]
[1734488271380,0.29355949,105330.0,105320.0,0.3608]
[1734488272271,0.65435949,105330.0,105310.0,0.777576]
[1734488272471,0.047472,105320.0,105310.0,0.7301]
[1734488272775,0.11036449,105320.0,105310.0,0.82573824]
[1734488272973,0.047472,105320.0,105310.0,0.5509]
[1734488273178,0.047472,105320.0,105310.0,0.3708]
[1734488274774,0.047472,105320.0,105310.0,0.49825266]
[1734488274971,0.047472,105320.0,105310.0,0.47533174]
[1734488275280,0.047472,105320.0,105310.0,0.3708]
[1734488276279,0.11036449,105320.0,105310.0,0.3708]
[1734488276489,0.77116449,105320.0,105310.0,0.01]
[1734488277379,0.78219401,105320.0,105310.0,0.01]
[1734488278483,0.48219401,105320.0,105310.0,0.01]
[1734488280180,0.41930152,105320.0,105310.0,0.01]
[1734488280393,0.48219401,105320.0,105310.0,0.01]
[1734488282275,0.48219401,105320.0,105310.0,0.1808]
[1734488282481,0.41930152,105320.0,105310.0,0.1808]
[1734488282684,0.01102952,105320.0,105310.0,0.589076]
[1734488282878,0.11036449,105320.0,105310.0,0.5416]
[1734488283092,0.47116449,105320.0,105310.0,0.01]
[1734488283390,0.64956449,105320.0,105310.0,0.01]
[1734488285595,0.408272,105320.0,105310.0,0.01]
[1734488285890,0.47116449,105320.0,105310.0,0.01]
[1734488289080,0.83405698,105320.0,105280.0,0.1826]
[1734488289284,0.83405698,105320.0,105270.0,0.408293]
[1734488289285,0.06289249,105290.0,105270.0,0.7131]
[1734488289487,0.06289249,105280.0,105270.0,0.3523]
[1734488289691,0.04749,105280.0,105270.0,0.3523]
[1734488290885,0.04749,105280.0,105270.0,0.760594]
[1734488291086,0.758927,105290.0,105270.0,0.760594]
[1734488292190,0.398127,105290.0,105270.0,0.760594]
[1734488292382,0.398127,105290.0,105280.0,0.40829]
[1734488292582,0.047481,105300.0,105280.0,0.40829]
[1734488292785,0.3608,105300.0,105270.0,0.3608]
[1734488292996,0.3608,105300.0,105200.0,0.410523]
[1734488292997,0.047504,105250.0,105230.0,0.408311]
[1734488293181,0.408304,105250.0,105230.0,0.408311]
[1734488293383,0.408304,105250.0,105240.0,0.1755]
[1734488293592,0.408304,105250.0,105240.0,0.5418]
[1734488294389,0.408304,105250.0,105240.0,0.3598]
[1734488297898,0.47119649,105250.0,105240.0,0.3598]
[1734488298198,0.47119649,105250.0,105240.0,0.1755]
[1734488298394,0.047512,105230.0,105220.0,0.3608]
[1734488298698,0.047512,105230.0,105210.0,0.95336295]
[1734488299293,0.06289249,105230.0,105210.0,0.8952]
[1734488299486,0.06289249,105230.0,105210.0,0.5344]
[1734488299487,0.11040949,105220.0,105210.0,0.5344]
[1734488299696,0.047517,105220.0,105210.0,0.5344]
[1734488300693,0.408314,105230.0,105210.0,0.5344]
[1734488301798,0.047514,105230.0,105210.0,0.942719]
[1734488302300,0.047514,105230.0,105220.0,0.047517]
[1734488302597,0.408308,105240.0,105220.0,0.408317]
[1734488302791,0.408308,105240.0,105230.0,0.0005]
[1734488303094,0.047504,105250.0,105240.0,0.047508]
[1734488303292,0.047504,105250.0,105240.0,0.557208]
[1734488303893,0.047504,105250.0,105240.0,0.918008]
[1734488304095,0.11039649,105250.0,105240.0,0.557208]
[1734488304491,0.11039649,105250.0,105240.0,0.1674]
[1734488306009,0.47119649,105250.0,105240.0,0.1674]
[1734488306589,0.3608,105250.0,105240.0,0.214908]
[1734488307098,0.78952373,105260.0,105240.0,0.214908]
[1734488307305,0.7116,105260.0,105240.0,0.5282]
[1734488307495,0.7116,105260.0,105250.0,0.224303]
[1734488307496,0.3608,105260.0,105250.0,0.224303]
[1734488307695,0.408299,105260.0,105250.0,0.224303]
[1734488308404,0.47119149,105260.0,105250.0,0.224303]
[1734488308705,0.47119149,105260.0,105250.0,0.1768]
[1734488309302,0.42369249,105260.0,105240.0,0.1674]
[1734488309509,0.47119549,105250.0,105240.0,0.1674]
[1734488309805,0.047508,105240.0,105230.0,0.4234]
[1734488309994,0.047512,105230.0,105220.0,0.3623]
[1734488310198,0.47120449,105230.0,105220.0,0.3623]
[1734488310807,0.47120449,105230.0,105210.0,0.04752]
[1734488311107,0.11041049,105220.0,105200.0,0.872225]
[1734488312309,0.047518,105220.0,105200.0,0.872225]
[1734488312500,0.11041049,105220.0,105200.0,0.872225]
[1734488312697,0.11041049,105220.0,105210.0,0.0005]
[1734488312900,0.047518,105220.0,105210.0,0.0005]
[1734488313101,0.3608,105230.0,105210.0,0.048021]
[1734488313405,0.047509,105240.0,105220.0,0.408313]
[1734488313608,0.8952,105250.0,105230.0,0.403411]
[1734488313609,0.82199649,105250.0,105230.0,0.403411]
[1734488314806,0.47120049,105240.0,105220.0,0.224716]
[1734488315001,0.47120049,105240.0,105220.0,0.580616]
[1734488315508,0.11040449,105230.0,105220.0,0.580616]
[1734488315710,0.47120449,105230.0,105220.0,0.3559]
[1734488315902,0.47120449,105230.0,105220.0,0.1814]
[1734488318305,0.47120449,105230.0,105210.0,0.04752]
[1734488320209,0.47120449,105230.0,105210.0,0.0564135]
[1734488320913,0.47120449,105230.0,105210.0,0.07933442]
[1734488321109,0.408312,105230.0,105210.0,0.07933442]
[1734488321304,0.047512,105230.0,105210.0,0.07933442]
[1734488322318,0.408312,105230.0,105210.0,0.44013442]
[1734488322614,0.47120449,105230.0,105210.0,0.44013442]
[1734488323008,0.408312,105230.0,105210.0,0.44013442]
[1734488323912,0.408312,105230.0,105220.0,0.047517]
[1734488324213,0.408312,105230.0,105220.0,0.0564105]
[1734488324622,0.591409,105240.0,105220.0,0.07933142]
[1734488325116,0.591409,105240.0,105220.0,0.44013142]
[1734488325811,0.408309,105240.0,105230.0,0.047512]
[1734488326017,0.408309,105240.0,105230.0,0.2303055]
[1734488326224,0.047509,105240.0,105230.0,0.22031112]
[1734488326408,0.047509,105240.0,105230.0,0.75041112]
[1734488326612,0.047509,105240.0,105230.0,0.38961112]
[1734488327404,0.78896867,105250.0,105240.0,0.047508]
[1734488327620,0.3608,105250.0,105240.0,0.047508]
[1734488327917,0.76608,105260.0,105240.0,0.047508]
[1734488327918,0.7661,105260.0,105240.0,0.047508]
[1734488328114,0.8396498,105260.0,105240.0,0.047508]
[1734488328613,0.77675731,105260.0,105240.0,0.047508]
[1734488328817,0.77625731,105260.0,105240.0,0.047508]
[1734488329123,0.77625731,105260.0,105250.0,0.047503]
[1734488329420,0.0475,105260.0,105250.0,0.047503]
[1734488329813,0.42694713,105270.0,105260.0,0.047499]
[1734488330317,0.408295,105270.0,105260.0,0.047499]
[1734488331021,0.21531001,105280.0,105270.0,0.047494]
[1734488331205,0.21479,105280.0,105270.0,0.047494]
[1734488331605,0.57559,105280.0,105270.0,0.047494]
[1734488331811,0.40829,105280.0,105270.0,0.047494]
[1734488332024,0.3608,105280.0,105270.0,0.047494]
[1734488332207,0.42755258,105290.0,105280.0,0.04749]
[1734488332414,0.04759969,105290.0,105280.0,0.04749]
[1734488332913,0.00011369,105290.0,105280.0,0.04749]
[1734488333118,0.00011369,105290.0,105280.0,0.40829]
[1734488334312,0.00011369,105290.0,105280.0,0.47118249]
[1734488335825,0.00011369,105290.0,105280.0,0.40829]
[1734488339125,0.408275,105320.0,105280.0,1.02427899]
[1734488339324,0.047475,105320.0,105310.0,0.047476]
[1734488340127,0.40838013,105330.0,105310.0,0.047476]
[1734488340324,0.40838013,105330.0,105310.0,0.408276]
[1734488340623,0.40838013,105330.0,105310.0,0.42369249]
[1734488340833,0.40838013,105330.0,105320.0,0.047472]
[1734488341630,0.40838013,105330.0,105310.0,0.3608]
[1734488341928,0.47127262,105330.0,105310.0,0.408275]
[1734488342118,0.3608,105320.0,105290.0,0.8915]
[1734488342324,0.47116949,105310.0,105290.0,0.938984]
[1734488342520,0.047481,105300.0,105290.0,0.755284]
[1734488342726,0.581577,105310.0,105290.0,0.755284]
[1734488343641,0.581577,105310.0,105300.0,0.047481]
[1734488343937,0.408272,105320.0,105300.0,0.06289249]
[1734488344120,0.047472,105320.0,105310.0,0.047476]
[1734488346130,0.42369249,105320.0,105290.0,0.9608]
[1734488346326,0.47117249,105310.0,105290.0,1.008284]
[1734488346629,0.59078,105310.0,105290.0,1.008284]
[1734488347635,0.22998,105310.0,105300.0,0.047481]
[1734488348633,0.59078,105310.0,105300.0,0.047481]
[1734488348828,0.3608,105320.0,105310.0,0.047476]
[1734488349832,0.58828113,105330.0,105320.0,0.047472]
[1734488350022,0.54081313,105330.0,105320.0,0.047472]
[1734488350217,0.00061313,105330.0,105320.0,0.047472]
[1734488350425,0.04808013,105330.0,105320.0,0.1768]
[1734488351134,0.04808013,105330.0,105320.0,0.224272]
[1734488351135,0.40888013,105330.0,105320.0,0.224272]
[1734488351832,0.04808013,105330.0,105320.0,0.224272]
[1734488353235,0.00061313,105330.0,105320.0,0.224272]
[1734488356325,0.54888281,105350.0,105320.0,0.88515858]
[1734488356525,0.54888281,105350.0,105340.0,0.047463]
[1734488356526,0.37128281,105350.0,105340.0,0.047463]
[1734488356725,0.772657,105360.0,105340.0,0.408263]
[1734488356938,0.592757,105360.0,105340.0,0.408263]
[1734488357240,0.61211621,105360.0,105350.0,0.047458]
[1734488357426,0.25131621,105360.0,105350.0,0.047458]
[1734488357627,0.231957,105360.0,105350.0,0.047458]
[1734488358136,0.75793021,105370.0,105350.0,0.047458]
[1734488358335,0.76801304,105370.0,105350.0,0.047458]
[1734488358633,0.16977921,105370.0,105360.0,0.047454]
[1734488358827,7.921e-05,105370.0,105360.0,0.047454]
[1734488359027,0.40832821,105370.0,105350.0,0.1804]
[1734488359331,0.408254,105360.0,105340.0,0.408262]
[1734488359530,0.408254,105360.0,105340.0,0.3608]
[1734488359732,0.408254,105360.0,105350.0,0.047458]
[1734488362041,0.3608,105360.0,105350.0,0.047458]
[1734488364641,0.40832921,105370.0,105360.0,0.047454]
[1734488365651,0.36087921,105370.0,105360.0,0.047454]
[1734488365850,7.921e-05,105370.0,105360.0,0.047454]
[1734488366149,7.921e-05,105370.0,105360.0,0.217754]
[1734488366346,7.921e-05,105370.0,105360.0,0.563354]
[1734488367552,7.921e-05,105370.0,105360.0,0.924154]
[1734488369553,7.921e-05,105370.0,105360.0,0.563354]
[1734488370047,7.921e-05,105370.0,105360.0,0.92426461]
[1734488370245,7.921e-05,105370.0,105360.0,0.56346461]
[1734488371653,0.40832821,105370.0,105360.0,0.04756461]
[1734488371955,0.40832821,105370.0,105360.0,0.00011061]
[1734488372857,0.40882821,105370.0,105360.0,0.00011061]
[1734488373751,0.40832821,105370.0,105360.0,0.00011061]
[1734488374149,0.40832821,105370.0,105360.0,0.04756461]
[1734488374752,0.40882821,105370.0,105360.0,0.04756461]
[1734488376655,0.00057921,105370.0,105360.0,0.04756461]
[1734488377358,0.00057921,105370.0,105360.0,0.47122588]
[1734488377861,0.00057921,105370.0,105360.0,0.48122588]
[1734488377862,7.921e-05,105370.0,105360.0,0.48122588]
[1734488378566,7.921e-05,105370.0,105360.0,0.05756461]
[1734488378779,0.04752821,105370.0,105360.0,0.05756461]
[1734488381357,7.921e-05,105370.0,105360.0,0.05756461]
[1734488381559,7.921e-05,105370.0,105360.0,0.12042588]
[1734488381759,7.921e-05,105370.0,105360.0,0.48122588]
[1734488384857,0.01,105380.0,105360.0,0.84408715]
[1734488385163,0.01,105380.0,105370.0,0.98191027]
[1734488387561,0.01,105380.0,105370.0,1.01372469]
[1734488392371,0.96009877,105410.0,105400.0,0.047436]
[1734488396462,0.96009877,105410.0,105390.0,0.3608]
[1734488396663,0.96009877,105410.0,105390.0,0.408238]
[1734488396866,0.0005,105400.0,105390.0,0.408238]
[1734488397771,0.96009877,105410.0,105390.0,0.408238]
[1734488397959,0.047436,105400.0,105390.0,0.41852952]
[1734488398874,0.047936,105400.0,105390.0,0.41852952]
[1734488399874,0.047436,105400.0,105390.0,0.41852952]
[1734488400367,0.47109727,105400.0,105370.0,1.172048]
[1734488400573,0.408245,105380.0,105370.0,0.09546446]
[1734488400968,0.408245,105380.0,105360.0,0.10557507]
[1734488400969,0.42366127,105380.0,105360.0,0.10557507]
[1734488401173,0.047449,105370.0,105360.0,0.10557507]